Cogmind - Beta 11.1 @@@ ROGUE MODE // 2022.05.04 @ 14:12:58 Player: Azken Zutik Result: Self-destructed Performance ------------- Evolutions (3) 1500 Regions Visited (6) 1200 Robots Destroyed (0) 0 Value Destroyed (0) 0 Prototype IDs (0) 0 Alien Tech Used (0) 0 Bonus (934) 934 TOTAL SCORE: 3634 Bonus ------- Pacifist 634 Aligned with FarCom 300 Cogmind --------- Core Integrity 644/700 Matter 255/300 Energy 100/100 System Corruption 0% Temperature Cool (0) Movement Core (50) Location -7/Factory Parts ------- > --- POWER (1) -------- (None) > --- PROPULSION (2) --- (None) > --- UTILITY (8) ------ (None) > --- WEAPON (2) ------- (None) > --- INVENTORY (5) ---- Wheel Compact Wheel EM Pulse Gun Peak State ------------ > --- POWER ------------ (None) > --- PROPULSION ------- Light Treads > --- UTILITY ---------- (None) > --- WEAPON ----------- (None) > --- INVENTORY -------- Light Treads Wheel Compact Wheel EM Pulse Gun [Rating: 1] Favorites ----------- Power None Propulsion Light Treads Treads Light Treads Utility None Weapon None Build | -11 -10 -10 -10 -9 -8 -7 ------- Run | Scr Mat Min Exi Min Mat Fac Slots Evolved 6 | . . . . . 4 2 Power . | . . . . . . . Propulsion . | . . . . . . . Utility 6 | . . . . . 4 2 Weapon . | . . . . . . . Parts Attached 2 | . . . . . 2 . Power . | . . . . . . . Engine . | . . . . . . . Core . | . . . . . . . Reactor . | . . . . . . . Propulsion 2 | . . . . . 2 . Treads 2 | . . . . . 2 . Leg . | . . . . . . . Wheel . | . . . . . . . Hover . | . . . . . . . Flight . | . . . . . . . Utility . | . . . . . . . Device . | . . . . . . . Storage . | . . . . . . . Processor . | . . . . . . . Hackware . | . . . . . . . Protection . | . . . . . . . Artifact . | . . . . . . . Weapon . | . . . . . . . Energy Gun . | . . . . . . . Energy Cannon . | . . . . . . . Ballistic Gun . | . . . . . . . Ballistic Cannon . | . . . . . . . Launcher . | . . . . . . . Special Weapon . | . . . . . . . Impact Weapon . | . . . . . . . Slashing Weapon . | . . . . . . . Piercing Weapon . | . . . . . . . Special Melee Weapon . | . . . . . . . Unidentified Prototypes . | . . . . . . . Parts Lost 2 | . . . . . 1 1 Power . | . . . . . . . Propulsion 2 | . . . . . 1 1 Utility . | . . . . . . . Weapon . | . . . . . . . Highest Loss Streak 1 | . . . . . 1 1 To Critical Strikes 1 | . . . . . 1 . Average Slot Usage (%) 1 | . . . . . . 2 Treads 1 | . . . . . . 2 Naked Turns 353 | . 22 72 77 20 40 122 Heaviest Build . | . . . . . . . Greatest Support 3 | 3 3 3 3 3 3 3 Greatest Overweight (x) . | . . . . . . . Average Overweight (x) . | . . . . . . . Largest Inventory Capacity 5 | . 5 5 5 5 5 5 Average Capacity 5 | . 5 5 5 5 5 5 Most Carried 5 | . 5 5 5 5 5 3 Average Carried 4 | . 5 5 5 5 4 3 Final Capacity 5 | 5 5 5 5 5 5 5 Final Carried 5 | 5 5 5 5 5 3 3 Class Distribution -------------------- 100% | Mutant Dominant Class ---------------- Mutant | -10/Materials Mutant | -10/Mines Mutant | -10/Exiles Mutant | -9/Mines Mutant | -8/Materials Mutant | -7/Factory Resources | -11 -10 -10 -10 -9 -8 -7 ----------- Run | Scr Mat Min Exi Min Mat Fac Matter Collected 146 | 146 . . . . . . Remotely . | . . . . . . . Salvage Created . | . . . . . . . Parts . | . . . . . . . Haulers Intercepted . | . . . . . . . Recyclers Shooed . | . . . . . . . Parts Field Recycled . | . . . . . . . Retrieved Matter . | . . . . . . . Parts Self-Destructed . | . . . . . . . Prevented . | . . . . . . . Kills | -11 -10 -10 -10 -9 -8 -7 ------- Run | Scr Mat Min Exi Min Mat Fac Combat Hostiles Destroyed . | . . . . . . . Classes Destroyed . | . . . . . . . Best Kill Streak . | . . . . . . . Combat Bots Only . | . . . . . . . Max Kills in Single Turn . | . . . . . . . Gunslinging . | . . . . . . . Exploded . | . . . . . . . Melee . | . . . . . . . Uniques/NPCs Destroyed . | . . . . . . . Combat | -11 -10 -10 -10 -9 -8 -7 -------- Run | Scr Mat Min Exi Min Mat Fac Damage Taken 900 | . . 66 . 89 671 74 Core 637 | . . 66 . 89 426 56 Absorbed by Shields . | . . . . . . . Core Remaining (%) 53 | 100 . . . 38 22 . Volleys Fired . | . . . . . . . Largest . | . . . . . . . Hottest . | . . . . . . . Shots Fired . | . . . . . . . Gun . | . . . . . . . Cannon . | . . . . . . . Launcher . | . . . . . . . Special . | . . . . . . . Kinetic . | . . . . . . . Thermal . | . . . . . . . Explosive . | . . . . . . . Electromagnetic . | . . . . . . . Robot Hit Streak . | . . . . . . . Robot Miss Streak . | . . . . . . . Penetration Max . | . . . . . . . Secondary Targets . | . . . . . . . Shots Hit Robots . | . . . . . . . Core Hits . | . . . . . . . Critical Kills . | . . . . . . . Critical Parts Destroyed . | . . . . . . . Critical Strikes . | . . . . . . . Melee Attacks . | . . . . . . . Impact . | . . . . . . . Slashing . | . . . . . . . Piercing . | . . . . . . . Sneak Attacks . | . . . . . . . Combat Hostiles . | . . . . . . . Follow-up Attacks . | . . . . . . . Damage Inflicted 28 | . . . . . 19 9 Guns . | . . . . . . . Cannons . | . . . . . . . Explosions . | . . . . . . . Melee . | . . . . . . . Ramming 28 | . . . . . 19 9 Kinetic . | . . . . . . . Thermal . | . . . . . . . Explosive . | . . . . . . . Electromagnetic . | . . . . . . . Impact . | . . . . . . . Slashing . | . . . . . . . Piercing . | . . . . . . . Highest Corruption . | . . . . . . . Average Corruption . | . . . . . . . Corruption Purged . | . . . . . . . Corruption Blocked . | . . . . . . . Overload Shots . | . . . . . . . Overflow Damage . | . . . . . . . Projectiles . | . . . . . . . Explosions . | . . . . . . . Melee . | . . . . . . . Knockbacks . | . . . . . . . Impact . | . . . . . . . Kinetic . | . . . . . . . Secondary . | . . . . . . . Self-Inflicted Damage 13 | . . . . . 9 4 Shots . | . . . . . . . Rammed 5 | . . . . . 3 2 Targets Rammed 5 | . . . . . 3 2 Kicked . | . . . . . . . Crushed . | . . . . . . . Highest Temperature . | . . . . . . . Average Temperature . | . . . . . . . Received Heat Transfer 255 | . . 36 . 48 171 . Siege Activations . | . . . . . . . Robots Corrupted . | . . . . . . . Combat Hostiles . | . . . . . . . Parts Fried . | . . . . . . . Impact Corruptions . | . . . . . . . Robots Melted . | . . . . . . . Combat Hostiles . | . . . . . . . Parts Melted . | . . . . . . . Heat Transferred . | . . . . . . . Parts Sabotaged . | . . . . . . . Parts Stolen . | . . . . . . . Parts Stripped . | . . . . . . . Power Chain Reactions . | . . . . . . . Missiles Intercepted . | . . . . . . . Alert | -11 -10 -10 -10 -9 -8 -7 ------- Run | Scr Mat Min Exi Min Mat Fac Peak Influence 128 | . . 30 . 15 50 128 Initial 18 | . . . . . 5 18 Average 36 | . . 6 . 7 18 60 Maximum Alert Level . | . . . . . . . Low Security (%) 100 | . 100 100 . 100 100 100 Level 1 . | . . . . . . . Level 2 . | . . . . . . . Level 3 . | . . . . . . . Level 4 . | . . . . . . . Level 5 . | . . . . . . . High Security . | . . . . . . . Max Security . | . . . . . . . Squads Dispatched 4 | . . . . 1 . 3 Investigation 4 | . . . . 1 . 3 Extermination . | . . . . . . . Reinforcement . | . . . . . . . Assault . | . . . . . . . Garrison . | . . . . . . . Intercept . | . . . . . . . Searches Triggered . | . . . . . . . Construction Impeded . | . . . . . . . Haulers Reinforced . | . . . . . . . Active Scanning Responses . | . . . . . . . Cargo Convoy Interrupts . | . . . . . . . Stealth | -11 -10 -10 -10 -9 -8 -7 --------- Run | Scr Mat Min Exi Min Mat Fac Distress Signals . | . . . . . . . Communications Jammed . | . . . . . . . Distress Signals . | . . . . . . . Times Spotted 31 | . 2 4 . 6 15 4 Peak Tracking Total 14 | . 2 2 . 6 14 5 Tactical Retreats 4 | . . 1 . . . 3 Traps | -11 -10 -10 -10 -9 -8 -7 ------- Run | Scr Mat Min Exi Min Mat Fac Traps Triggered 1 | . . . . . . 1 Indirectly . | . . . . . . . Trap Hack Attempts . | . . . . . . . Triggered . | . . . . . . . Disarmed . | . . . . . . . Reprogrammed . | . . . . . . . Reused . | . . . . . . . Traps Extracted . | . . . . . . . Installed . | . . . . . . . Triggered . | . . . . . . . Machines | -11 -10 -10 -10 -9 -8 -7 ---------- Run | Scr Mat Min Exi Min Mat Fac Machines Disabled . | . . . . . . . Max in Single Turn . | . . . . . . . Machines Sabotaged . | . . . . . . . Garrisons Compromised . | . . . . . . . Overloaded Fab Kills . | . . . . . . . Hacking | -11 -10 -10 -10 -9 -8 -7 --------- Run | Scr Mat Min Exi Min Mat Fac Machines Accessed 3 | . . . . 1 . 2 Terminals 2 | . . . . 1 . 1 Fabricators . | . . . . . . . Repair Stations . | . . . . . . . Recycling Units . | . . . . . . . Scanalyzers . | . . . . . . . Garrison Access 1 | . . . . . . 1 Total Hacks 9 | . . . . 4 . 5 Successful 1 | . . . . 1 . . Failed 8 | . . . . 3 . 5 Catastrophic 4 | . . . . 1 . 3 Database Lockouts . | . . . . . . . Manual 5 | . . . . 3 . 2 Terminals 6 | . . . . 4 . 2 Fabricators . | . . . . . . . Repair Stations . | . . . . . . . Recycling Units . | . . . . . . . Scanalyzers . | . . . . . . . Garrison Access 3 | . . . . . . 3 Terminal Hacks 1 | . . . . 1 . . Zone Layout 1 | . . . . 1 . . Fabricator Hacks . | . . . . . . . Repair Station Hacks . | . . . . . . . Recycling Unit Hacks . | . . . . . . . Scanalyzer . | . . . . . . . Garrison Access Hacks . | . . . . . . . Unauthorized Hacks . | . . . . . . . Terminals . | . . . . . . . Fabricators . | . . . . . . . Repair Stations . | . . . . . . . Recycling Units . | . . . . . . . Scanalyzers . | . . . . . . . Garrison Access . | . . . . . . . Data Cores Recovered . | . . . . . . . Used . | . . . . . . . Hacking Detections 3 | . . . . 1 . 2 Full Trace Events 3 | . . . . 1 . 2 Feedback Events . | . . . . . . . Feedback Blocked . | . . . . . . . Robot Schematics Acquired . | . . . . . . . Robots Built . | . . . . . . . Authchips . | . . . . . . . Time . | . . . . . . . Total Robot Build Rating . | . . . . . . . Part Schematics Acquired . | . . . . . . . Parts Built . | . . . . . . . Authchips . | . . . . . . . Time . | . . . . . . . Total Part Build Rating . | . . . . . . . Parts Repaired . | . . . . . . . Time . | . . . . . . . Parts Recycled . | . . . . . . . Recycled Matter . | . . . . . . . Retrieved Matter . | . . . . . . . Retrieved Components . | . . . . . . . Parts Scanalyzed . | . . . . . . . Part Schematics Acquired . | . . . . . . . Parts Damaged . | . . . . . . . Bothacking | -11 -10 -10 -10 -9 -8 -7 ------------ Run | Scr Mat Min Exi Min Mat Fac Used RIF Installer . | . . . . . . . Robots Hacked . | . . . . . . . Non-combat . | . . . . . . . Combat . | . . . . . . . Robot Hacks Applied . | . . . . . . . Relay Couplers Released . | . . . . . . . Fabnet Peak Effective % . | . . . . . . . Robots Rewired . | . . . . . . . Allies Hacked . | . . . . . . . Hacks Repelled . | . . . . . . . Allies | -11 -10 -10 -10 -9 -8 -7 -------- Run | Scr Mat Min Exi Min Mat Fac Total Allies 2 | . . . . 2 . . Largest Group 2 | . . . . 2 2 . Highest-Rated Group 51 | . . . . 51 51 . Highest-Rated Ally 31 | . . . . 31 31 . Total Orders . | . . . . . . . Ally Attacks 1 | . . . . 1 . . Total Damage 22 | . . . . 22 . . Kills . | . . . . . . . Allies Corrupted . | . . . . . . . Allies Melted . | . . . . . . . Intel | -11 -10 -10 -10 -9 -8 -7 ------- Run | Scr Mat Min Exi Min Mat Fac Robot Analysis Total . | . . . . . . . Derelict Logs Recovered 2 | . . 2 . . . . Drone Launches . | . . . . . . . Drone Recoveries . | . . . . . . . Exploration | -11 -10 -10 -10 -9 -8 -7 ------------- Run | Scr Mat Min Exi Min Mat Fac Turns Passed 433 | . 22 72 77 20 56 186 Spaces Moved 850 | 1 44 143 154 40 102 366 Core 850 | 1 44 143 154 40 102 366 Treads . | . . . . . . . Legs . | . . . . . . . Wheels . | . . . . . . . Hover . | . . . . . . . Flight . | . . . . . . . Fastest Speed 50 | 50 50 50 50 50 50 50 Average Speed 50 | 50 50 50 50 50 50 50 Slowest Speed 50 | 50 50 50 50 50 50 50 Overloaded Moves . | . . . . . . . Propulsion Burnouts . | . . . . . . . Robots Hopped . | . . . . . . . Cave-ins Triggered . | . . . . . . . Exploration Rate (%) 22 | 2 20 37 54 16 15 14 Regions Visited 6 Branch Regions 3 Pre-discovered Areas 3 | . . 3 . . . . Known Exits Taken . | . . . . . . . Unknown Exits Taken 6 | 1 1 1 1 1 1 . Scrap Searched . | . . . . . . . Spaces Dug . | . . . . . . . Terrain Destroyed . | . . . . . . . Melee . | . . . . . . . Projectile . | . . . . . . . AOE . | . . . . . . . Terrain Rammed . | . . . . . . . Walls Destroyed . | . . . . . . . Machines Disabled . | . . . . . . . Actions | -11 -10 -10 -10 -9 -8 -7 --------- Run | Scr Mat Min Exi Min Mat Fac Total 851 | . 43 142 153 39 106 368 Wait . | . . . . . . . Move 844 | . 43 142 153 39 101 366 Hop . | . . . . . . . Pick Up . | . . . . . . . Fast Attach . | . . . . . . . Attach 2 | . . . . . 2 . Detach . | . . . . . . . Swap . | . . . . . . . Drop . | . . . . . . . Fire . | . . . . . . . Melee . | . . . . . . . Ram 5 | . . . . . 3 2 Kick . | . . . . . . . Crush . | . . . . . . . Escape Stasis . | . . . . . . . Rewire . | . . . . . . . Trap . | . . . . . . . Miscellaneous . | . . . . . . . Route ------- -11/Scrapyard -10/Materials -10/Mines -10/Exiles -9/Mines -8/Materials -7/Factory History --------- Turn | Location | Event 1 | -11/Scrapyard | Released all parts (6) 1 | -11/Scrapyard | Discovered new exit (range 0) 1 | -11/Scrapyard | Entered Materials 18 | -10/Materials | Discovered new exit (range 12) 23 | -10/Materials | Entered Mines 39 | -10/Mines | Learned location of Storage (-9) 88 | -10/Mines | Learned location of Zion (-6) 92 | -10/Mines | Deemed a non-threat by the Exiles lab entrance 92 | -10/Mines | Discovered new exit (range 5) 95 | -10/Mines | Entered Exiles 107 | -10/Exiles | Met 8R-AWN 117 | -10/Exiles | Met EX-HEX 130 | -10/Exiles | Met EX-BIN 136 | -10/Exiles | Aligned with FarCom system 136 | -10/Exiles | Given EX-Vault access code 150 | -10/Exiles | Met EX-DEC 166 | -10/Exiles | Discovered new exit (range 14) 172 | -10/Exiles | Entered Mines 185 | -9/Mines | Core integrity fell below 50% 189 | -9/Mines | Discovered new exit (range 8) 192 | -9/Mines | Entered Materials 192 | -8/Materials | Accompanied by 2 allies 192 | -8/Materials | Evolved 4 slots: Utility x4 197 | -8/Materials | Led the pair of lost Derelicts to an unsafe place 237 | -8/Materials | Core integrity fell below 50% 245 | -8/Materials | Discovered new exit (range 8) 248 | -8/Materials | Entered Factory 248 | -7/Factory | Evolved 2 slots: Utility x2 318 | -7/Factory | Build established: Mutant 434 | -7/Factory | Self-destructed Last Messages --------------- 00281_ K-01 Serf collects debris. 00282_ Triggered Alarm Trap. 00282_ An alarm sounds. 00282_ ALERT: Alarm triggered, dispatching investigation squad. 00282_ K-01 Serf cleans the Nuclear Reactor. 00295_ ALERT: All DSF locations entering lockdown mode. 00299_ Slammed into U-05 Engineer. 00299_ Destabilizing: Core damaged (-7). 00301_ Slammed into U-05 Engineer. 00306_ Connecting with Garrison Access... 00306_ Current location identified: Factory 00306_ ALERT: Suspicious activity at Garrison Access F001. Dispatching Investigation squad. 00312_ Lgt. Treads destroyed. 00333_ K-01 Serf cleans the Pressure Siphon. 00343_ K-01 Serf collects debris. 00355_ Fabricator completes G-47 Trooper. 00366_ Connecting with Terminal... 00366_ ALERT: Suspicious activity at Terminal F007. Dispatching Investigation squad. Map ----- +----------------------------------------------------+ | | | ?????????????????????????????????????????????????? | | ?????????????????????????????????????????????????? | | #########????????????????????????????????????????? | | # ^ #?????????????????????????#######?###????? | | # #?????????????????????????# #????? | | # """ #?????????????????????????# """ #????? | | # """ ##+#??????????????????????# """"" #????? | | """ #??????????###+###?????# """"" #????? | | #????####### #?????# #????? | | * ###### | ####### #????? | | + ! #????? | | ################# ####### ] #????? | | ????????????????## #?????###########????? | | ?????????????????# ###????????????????????? | | ????????????????## #??????????????????????? | | ?????????????#### #??????????????????????? | | ??????????+ #??????????????????????? | | ???????????###### #??????????????????????? | | ????????????????##+###### #??????????????????????? | | ????????????????????????# #??????????????????????? | | ???????????????????????##+####???????????????????? | | ???????????????????????# ! #???????????????????? | | ???????????????????????# #???????????????????? | | ???????????????????????# #???????????????????? | | ???????????????????????# @ *#???????????????????? | | ???????????????????????#######???????????????????? | | ?????????????????????????????????????????????????? | | ?????????????????????????????????????????????????? | | ?????????????????????????????????????????????????? | | ?????????????????????????????????????????????????? | | ?????????????????????????????????????????????????? | | ?????????????????????????????????????????????????? | | ?????????????????????????????????????????????????? | | ?????????????????????????????????????????????????? | | ?????????????????????????????????????????????????? | | ?????????????????????????????????????????????????? | | ?????????????????????????????????????????????????? | | ?????????????????????????????????????????????????? | | ?????????????????????????????????????????????????? | | ?????????????????????????????????????????????????? | | ?????????????????????????????????????????????????? | | ?????????????????????????????????????????????????? | | ?????????????????????????????????????????????????? | | ?????????????????????????????????????????????????? | | ?????????????????????????????????????????????????? | | ?????????????????????????????????????????????????? | | ?????????????????????????????????????????????????? | | ?????????????????????????????????????????????????? | | ?????????????????????????????????????????????????? | +----------------------------------------------------+ Best States ------------- Heat Dissipation 34 Energy Generation 5 Energy Capacity 100 Matter Stores 255 Matter Capacity 300 Sight Range 16 Terrain Scan Density 10 Evasion (%) 50 Item Schematics ----------------- None Robot Schematics ------------------ None Fabricated ------------ Nothing Alien Tech Used ----------------- None Achievements -------------- None Challenges ------------ None Game ------ Seed RemoteHoverMachine Manual? 0 Play Time 00:08:44 Cumulative 342.4 hours Start 2022.05.04 @ 14:06:17 End 2022.05.04 @ 14:12:58 Sessions 1 Manual Loads 0 Difficulty Rogue Special Mode None Game No. 116 Rogue 116 Adventurer 0 Explorer 0 Win Type - Total 7 Types 3/1/0/1/2/0/0/0/0 Lore% 66 Gallery% 78 Achievement% 69 Wizard Run 0 Options --------- ASCII 0 Keyboard 0 Movement Arrows Keybinds 0 Fullscreen 0 Font 28/SmallcapsGlow Map View 72x54 Tactical HUD 1 Map Filters NONE Filters NONE Steam 1 RUN: 34f52ecd-6f5b-4a60-aa38-876b9cfa8de6